fUST/lending_fUST_20240813
["ID","MTS","AMOUNT","RATE_DAILY","PERIOD"]
[334713816,1723498240378,-263.914663,0.00014529,2]
[334713817,1723498240389,-151.0,0.00014529,2]
[334713818,1723498240398,-202.356079,0.00014529,2]
[334713819,1723498240408,-500.0,0.00014529,2]
[334713820,1723498240419,-202.356079,0.00014529,2]
[334713821,1723498240428,-6490.07,0.00014529,2]
[334713822,1723498240439,-500.0,0.00014529,2]
[334713823,1723498240448,-370.934511,0.00014529,2]
[334713824,1723498240461,-979.367237,0.00014529,2]
[334713825,1723498240472,-151.0,0.00014529,2]
[334713826,1723498240483,-151.0,0.00014529,2]
[334713827,1723498240492,-370.934511,0.00014529,2]
[334713828,1723498240502,-979.367237,0.00014529,2]
[334713829,1723498240513,-616.66,0.00014529,2]
[334713830,1723498240524,-151.0,0.00014529,2]
[334713831,1723498240535,-572.77,0.00014529,2]
[334713832,1723498240545,-1280.35,0.00014529,2]
[334713833,1723498240555,-771.38,0.00014529,2]
[334713834,1723498240564,-500.0,0.00014529,2]
[334713835,1723498240573,-197.830991,0.00014529,2]
[334713836,1723498240583,-197.830991,0.00014529,2]
[334713837,1723498240592,-1454.59,0.00014529,2]
[334713838,1723498240601,-500.0,0.00014529,2]
[334713839,1723498240610,-1365.61,0.00014529,2]
[334713840,1723498240620,-548.09,0.00014529,2]
[334713841,1723498240629,-500.0,0.00014529,2]
[334713842,1723498240639,-500.0,0.00014529,2]
[334713843,1723498240648,-500.0,0.00014529,2]
[334713844,1723498240658,-862.07,0.00014529,2]
[334713845,1723498240668,-2063.02,0.00014529,2]
[334713846,1723498240678,-976.58,0.00014529,2]
[334713847,1723498240687,-186.931064,0.00014529,2]
[334713848,1723498240696,-186.931064,0.00014529,2]
[334713849,1723498240705,-1205.06,0.00014529,2]
[334713850,1723498240716,-2395.24,0.00014536,2]
[334713851,1723498240726,-2395.24,0.00014536,2]
[334713852,1723498240735,-437.23647548,0.00014537,2]
[334713853,1723498240744,-507.2578709,0.00014537,2]
[334713854,1723498240754,-500.0,0.00014537,2]
[334713855,1723498240766,-500.0,0.00014537,2]
[334713856,1723498240776,-500.0,0.00014537,2]
[334713857,1723498240785,-500.0,0.00014537,2]
[334713858,1723498240794,-500.0,0.00014537,2]
[334713859,1723498240803,-500.0,0.00014537,2]
[334713860,1723498240813,-500.0,0.00014537,2]
[334713861,1723498240822,-500.0,0.00014537,2]
[334713862,1723498240831,-625.65507654,0.00014537,2]
[334713863,1723498240840,-500.0,0.00014537,2]
[334713864,1723498240849,-606.01,0.00014537,2]
[334713865,1723498240859,-500.0,0.00014537,2]
[334713866,1723498240868,-336.09245174,0.00014537,2]
[334713867,1723498240877,-500.0,0.00014537,2]
[334713868,1723498240887,-500.0,0.00014537,2]
[334713869,1723498240896,-500.0,0.00014537,2]
[334713870,1723498240905,-500.0,0.00014537,2]
[334713871,1723498240915,-500.0,0.00014537,2]
[334713872,1723498240925,-500.0,0.00014537,2]
[334713873,1723498240934,-500.0,0.00014537,2]
[334713874,1723498240943,-500.0,0.00014537,2]
[334713875,1723498240952,-500.0,0.00014537,2]
[334713876,1723498240961,-500.0,0.00014537,2]
[334713877,1723498240971,-500.0,0.00014537,2]
[334713878,1723498240981,-500.0,0.00014537,2]
[334713879,1723498240990,-500.0,0.00014537,2]
[334713880,1723498240999,-500.0,0.00014537,2]
[334713881,1723498241008,-850.38,0.00014537,2]
[334713882,1723498241019,-500.0,0.00014537,2]
[334713883,1723498241028,-509.72787759,0.00014537,2]
[334713884,1723498241037,-500.0,0.00014537,2]
[334713885,1723498241047,-500.0,0.00014537,2]
[334713886,1723498241056,-503.16228762,0.00014537,2]
[334713887,1723498241065,-511.68645328,0.00014537,2]
[334713888,1723498241074,-500.0,0.00014537,2]
[334713889,1723498241084,-284.00825652,0.00014537,2]
[334713890,1723498241092,-500.0,0.00014537,2]
[334713891,1723498241101,-500.0,0.00014537,2]
[334713892,1723498241110,-506.08398547,0.00014537,2]
[334713893,1723498241120,-500.0,0.00014537,2]
[334713894,1723498241129,-500.0,0.00014537,2]
[334713895,1723498241139,-500.0,0.00014537,2]
[334713896,1723498241151,-500.0,0.00014537,2]
[334713897,1723498241160,-938.88,0.00014537,2]
[334713898,1723498241169,-500.0,0.00014537,2]
[334713899,1723498241179,-500.0,0.00014537,2]
[334713900,1723498241188,-568.68471027,0.00014537,2]
[334713901,1723498241197,-500.0,0.00014537,2]
[334713902,1723498241206,-500.0,0.00014537,2]
[334713903,1723498241216,-506.07076068,0.00014537,2]
[334713904,1723498241227,-623.78,0.00014537,2]
[334713905,1723498241238,-500.0,0.00014537,2]
[334713906,1723498241248,-500.0,0.00014537,2]
[334713907,1723498241259,-500.0,0.00014537,2]
[334713908,1723498241268,-505.34929325,0.00014537,2]
[334713909,1723498241277,-500.0,0.00014537,2]
[334713910,1723498241287,-500.0,0.00014537,2]
[334713911,1723498241296,-514.91161468,0.00014537,2]
[334713912,1723498241306,-500.0,0.00014537,2]
[334713913,1723498241315,-500.0,0.00014537,2]
[334713914,1723498241325,-500.0,0.00014537,2]
[334713915,1723498241334,-503.56530414,0.00014537,2]
[334713916,1723498241344,-500.0,0.00014537,2]
[334713917,1723498241354,-151.0,0.00014537,2]
[334713918,1723498241363,-151.0,0.00014537,2]
[334713919,1723498241373,-151.0,0.00014537,2]
[334713920,1723498241387,-500.0,0.00014537,2]
[334713921,1723498241396,-503.97874758,0.00014537,2]
[334713922,1723498241406,-151.0,0.00014537,2]
[334713923,1723498241418,-744.68,0.00014537,2]
[334713924,1723498241429,-751.469496,0.00014537,2]
[334713925,1723498241439,-751.469496,0.00014537,2]
[334713926,1723498241450,-607.63,0.00014537,2]
[334713927,1723498241464,-500.0,0.00014537,2]
[334713928,1723498241473,-500.0,0.00014537,2]
[334713929,1723498241482,-431.730112,0.00014537,2]
[334713930,1723498241491,-431.730112,0.00014537,2]
[334713931,1723498241501,-500.0,0.00014537,2]
[334713932,1723498241512,-500.0,0.00014537,2]
[334713933,1723498241523,-416.913543,0.00014537,2]
[334713934,1723498241534,-416.913543,0.00014537,2]
[334713935,1723498241546,-500.0,0.00014537,2]
[334713936,1723498241555,-500.0,0.00014537,2]
[334713937,1723498241565,-500.0,0.00014537,2]
[334713938,1723498241574,-500.0,0.00014537,2]
[334713939,1723498241583,-1167.36,0.00014537,2]
[334713940,1723498241592,-500.0,0.00014537,2]
[334713941,1723498241601,-500.0,0.00014537,2]
[334713942,1723498241611,-500.0,0.00014537,2]
[334713943,1723498241620,-500.0,0.00014537,2]
[334713944,1723498241629,-500.0,0.00014537,2]
[334713945,1723498241638,-544.06,0.00014537,2]
[334713946,1723498241648,-263.914663,0.00014537,2]
[334713947,1723498241657,-500.0,0.00014537,2]
[334713948,1723498241667,-500.0,0.00014537,2]
[334713949,1723498241675,-500.0,0.00014537,2]
[334713950,1723498241685,-500.0,0.00014537,2]
[334713951,1723498241694,-263.914663,0.00014537,2]
[334713952,1723498241703,-151.0,0.00014537,2]
[334713953,1723498241712,-551.31,0.00014537,2]
[334713954,1723498241722,-501.90565031,0.00014537,2]
[334713955,1723498241732,-501.52233401,0.00014537,2]
[334713956,1723498241741,-500.0,0.00014537,2]
[334713957,1723498241750,-500.0,0.00014537,2]
[334713958,1723498241759,-500.0,0.00014537,2]
[334713959,1723498241769,-500.0,0.00014537,2]
[334713960,1723498241777,-1010.63,0.00014537,2]
[334713961,1723498241787,-500.0,0.00014537,2]
[334713962,1723498241795,-500.0,0.00014537,2]
[334713963,1723498241804,-202.356079,0.00014537,2]
[334713964,1723498241814,-1077.45,0.00014537,2]
[334713965,1723498241823,-202.356079,0.00014537,2]
[334713966,1723498241832,-503.41653541,0.00014537,2]
[334713967,1723498241841,-500.0,0.00014537,2]
[334713968,1723498241850,-370.934511,0.00014537,2]
[334713969,1723498241859,-500.0,0.00014537,2]
[334713970,1723498241868,-979.367237,0.00014537,2]
[334713971,1723498241878,-151.0,0.00014537,2]
[334713972,1723498241887,-2049.95,0.00014537,2]
[334713973,1723498241896,-151.0,0.00014537,2]
[334713974,1723498241906,-370.934511,0.00014537,2]
[334713975,1723498241915,-979.367237,0.00014537,2]
[334713976,1723498241924,-151.0,0.00014537,2]
[334713977,1723498241933,-500.0,0.00014537,2]
[334713978,1723498241943,-500.0,0.00014537,2]
[334713979,1723498241952,-3511.1,0.00014537,2]
[334713980,1723498241961,-500.0,0.00014537,2]
[334713981,1723498241970,-500.0,0.00014537,2]
[334713982,1723498241979,-500.0,0.00014537,2]
[334713983,1723498241988,-502.6501975,0.00014537,2]
[334713984,1723498241997,-500.0,0.00014537,2]
[334713985,1723498242006,-500.0,0.00014537,2]
[334713986,1723498242017,-500.0,0.00014537,2]
[334713987,1723498242026,-503.67086892,0.00014537,2]
[334713988,1723498242035,-500.0,0.00014537,2]
[334713989,1723498242046,-500.0,0.00014537,2]
[334713990,1723498242055,-197.830991,0.00014537,2]
[334713991,1723498242065,-197.830991,0.00014537,2]
[334713992,1723498242074,-1608.39,0.00014537,2]
[334713993,1723498242083,-558.32,0.00014537,2]
[334713994,1723498242093,-500.0,0.00014537,2]
[334713995,1723498242102,-501.98845617,0.00014537,2]
[334713996,1723498242112,-506.19468139,0.00014537,2]
[334713997,1723498242122,-1008.07,0.00014537,2]
[334713998,1723498242131,-500.0,0.00014537,2]
[334713999,1723498242140,-500.0,0.00014537,2]
[334714000,1723498242149,-500.0,0.00014537,2]
[334714001,1723498242159,-500.0,0.00014537,2]
[334714002,1723498242168,-500.0,0.00014537,2]
[334714003,1723498242177,-500.0,0.00014537,2]
[334714004,1723498242186,-500.0,0.00014537,2]
[334714005,1723498242196,-500.0,0.00014537,2]
[334714006,1723498242206,-500.0,0.00014537,2]
[334714007,1723498242215,-505.87900514,0.00014537,2]
[334714008,1723498242225,-504.78252744,0.00014537,2]
[334714009,1723498242234,-500.0,0.00014537,2]
[334714010,1723498242243,-186.931064,0.00014537,2]
[334714011,1723498242254,-500.0,0.00014537,2]
[334714012,1723498242265,-186.931064,0.00014537,2]
[334714013,1723498242279,-500.0,0.00014537,2]
[334714014,1723498242288,-500.0,0.00014537,2]
[334714015,1723498242297,-500.0,0.00014537,2]
[334714016,1723498242306,-503.91882432,0.00014537,2]
[334714017,1723498242315,-500.0,0.00014537,2]
[334714018,1723498242324,-624.713945,0.00014537,2]
[334714019,1723498242333,-500.0,0.00014537,2]
[334714020,1723498242342,-500.0,0.00014537,2]
[334714021,1723498242351,-624.713945,0.00014537,2]
[334714022,1723498242360,-500.0,0.00014537,2]
[334714023,1723498242369,-151.0,0.00014537,2]
[334714024,1723498242381,-500.0,0.00014537,2]
[334714025,1723498242390,-2395.24,0.00014538,2]
[334714026,1723498242400,-2395.24,0.00014538,2]
[334714027,1723498242410,-2395.24,0.00014538,2]
[334714028,1723498242420,-500.0,0.00014539,2]
[334714029,1723498242432,-500.36549665,0.00014539,2]
[334714031,1723498242444,-540.99826109,0.00014539,2]
[334714033,1723498242455,-512.68322596,0.00014539,2]
[334714035,1723498242464,-500.0,0.00014539,2]
[334714037,1723498242474,-502.38200505,0.00014539,2]
[334714039,1723498242483,-500.0,0.00014539,2]
[334714041,1723498242493,-500.0,0.00014539,2]
[334714043,1723498242502,-500.0,0.00014539,2]
[334714045,1723498242513,-500.0,0.00014539,2]
[334714046,1723498242523,-500.0,0.00014539,2]
[334714047,1723498242533,-502.11425216,0.00014539,2]
[334714048,1723498242544,-503.3674401,0.00014539,2]
[334714049,1723498242553,-500.0,0.00014539,2]
[334714050,1723498242563,-500.0,0.00014539,2]
[334714051,1723498242572,-502.42920818,0.00014539,2]
[334714052,1723498242582,-500.0,0.00014539,2]
[334714053,1723498242591,-500.0,0.00014539,2]
[334714054,1723498242601,-500.0,0.00014539,2]
[334714055,1723498242610,-504.21239175,0.00014539,2]
[334714056,1723498242619,-500.0,0.00014539,2]
[334714057,1723498242628,-508.82790382,0.00014539,2]
[334714058,1723498242638,-504.68628775,0.00014539,2]
[334714059,1723498242647,-500.0,0.00014539,2]
[334714060,1723498242657,-384.23911903,0.00014539,2]
[334714061,1723498242666,-509.59232505,0.00014539,2]
[334714062,1723498242675,-500.0,0.00014539,2]
[334714063,1723498242685,-472.37504085,0.00014539,2]
[334714064,1723498242694,-500.0,0.00014539,2]
[334714065,1723498242703,-654.34,0.00014539,2]
[334714066,1723498242713,-2310.21,0.00014539,2]
[334714067,1723498242722,-500.0,0.00014539,2]
[334714069,1723498242732,-500.0,0.00014539,2]
[334714071,1723498242741,-500.0,0.00014539,2]
[334714073,1723498242750,-500.18536811,0.00014539,2]
[334714075,1723498242760,-500.0,0.00014539,2]
[334714076,1723498242770,-500.0,0.00014539,2]
[334714077,1723498242779,-553.96,0.00014539,2]
[334714078,1723498242788,-500.0,0.00014539,2]
[334714079,1723498242798,-500.0,0.00014539,2]
[334714080,1723498242807,-617.72,0.00014539,2]
[334714081,1723498242816,-500.0,0.00014539,2]
[334714083,1723498242826,-151.0,0.00014539,2]
[334714085,1723498242835,-500.0,0.00014539,2]
[334714087,1723498242844,-500.0,0.00014539,2]
[334714088,1723498242854,-503.41868629,0.00014539,2]
[334714089,1723498242864,-500.0,0.00014539,2]
[334714090,1723498242874,-500.0,0.00014539,2]
[334714091,1723498242883,-500.0,0.00014539,2]
[334714092,1723498242892,-500.0,0.00014539,2]
[334714093,1723498242902,-544.52894034,0.00014539,2]
[334714094,1723498242911,-500.0,0.00014539,2]
[334714095,1723498242921,-500.0,0.00014539,2]
[334714097,1723498242930,-500.0,0.00014539,2]
[334714098,1723498242940,-151.0,0.00014539,2]
[334714099,1723498242949,-500.0,0.00014539,2]
[334714101,1723498242958,-151.0,0.00014539,2]
[334714102,1723498242967,-654.22,0.00014539,2]
[334714104,1723498242977,-151.216415,0.00014539,2]
[334714106,1723498242986,-151.216415,0.00014539,2]
[334714108,1723498242997,-151.72358,0.00014539,2]
[334714110,1723498243006,-173.935755,0.00014539,2]
[334714112,1723498243019,-173.935755,0.00014539,2]
[334714114,1723498243030,-151.0,0.00014539,2]
[334714116,1723498243039,-151.0,0.00014539,2]
[334714118,1723498243049,-151.0,0.00014539,2]
[334714120,1723498243058,-151.0,0.00014539,2]
[334714122,1723498243068,-751.469496,0.00014539,2]
[334714124,1723498243077,-751.469496,0.00014539,2]
[334714126,1723498243087,-431.730112,0.00014539,2]
[334714128,1723498243097,-431.730112,0.00014539,2]
[334714129,1723498243106,-416.913543,0.00014539,2]
[334714131,1723498243115,-416.913543,0.00014539,2]
[334714132,1723498243124,-263.914663,0.00014539,2]
[334714133,1723498243134,-263.914663,0.00014539,2]
[334714135,1723498243143,-151.0,0.00014539,2]
[334714137,1723498243153,-202.356079,0.00014539,2]
[334714138,1723498243162,-202.356079,0.00014539,2]
[334714140,1723498243172,-370.934511,0.00014539,2]
[334714141,1723498243182,-979.367237,0.00014539,2]
[334714142,1723498243191,-151.0,0.00014539,2]
[334714143,1723498243201,-151.0,0.00014539,2]
[334714144,1723498243211,-370.934511,0.00014539,2]
[334714145,1723498243220,-979.367237,0.00014539,2]
[334714146,1723498243229,-151.0,0.00014539,2]
[334714148,1723498243239,-197.830991,0.00014539,2]
[334714150,1723498243248,-197.830991,0.00014539,2]
[334714152,1723498243258,-186.931064,0.00014539,2]
[334714154,1723498243270,-186.931064,0.00014539,2]
[334714156,1723498243280,-624.713945,0.00014539,2]
[334714158,1723498243289,-624.713945,0.00014539,2]
[334714159,1723498243298,-151.0,0.00014539,2]
[334714160,1723498243308,-151.0,0.0001454,2]
[334714161,1723498243317,-151.0,0.0001454,2]
[334714162,1723498243327,-2000.0,0.00014628,2]
[334714163,1723498243337,-1176.96531835,0.00014628,2]
[334714164,1723498243347,-2395.24,0.00014675,2]
[334714166,1723498243357,-2395.24,0.00014675,2]
[334714168,1723498243367,-1314.80260922,0.00014675,2]
[334714171,1723498243390,-723.37166933,0.00014675,2]
[334714173,1723498243401,-357.06572145,0.00014675,2]
[334714174,1723498243411,-151.0,0.00014676,2]
[334714175,1723498243420,-151.0,0.00014676,2]
[334714176,1723498243430,-151.0,0.00014676,2]
[334714177,1723498243440,-151.0,0.00014676,2]
[334714178,1723498243449,-151.0,0.00014676,2]
[334714179,1723498243461,-151.216415,0.00014676,2]
[334714180,1723498243472,-151.216415,0.00014676,2]
[334714181,1723498243481,-624.713945,0.00014676,2]
[334714182,1723498243490,-173.935755,0.00014676,2]
[334714183,1723498243500,-173.935755,0.00014676,2]
[334714184,1723498243512,-1092.59843641,0.0001469,2]
[334714185,1723498243521,-207.3387286,0.000147,2]
[334714186,1723498243531,-153.0,0.000147,2]
[334714187,1723498243540,-153.0,0.000147,2]
[334714188,1723498243551,-207.3387286,0.000147,2]
[334714189,1723498243561,-207.3387286,0.000147,2]
[334714190,1723498243570,-207.3387286,0.000147,2]
[334714191,1723498243579,-207.3387286,0.000147,2]
[334714192,1723498243588,-153.0,0.000147,2]
[334714193,1723498243598,-153.0,0.000147,2]
[334714194,1723498243607,-710.5593929,0.000147,2]
[334714195,1723498243617,-153.0,0.000147,2]
[334714196,1723498243626,-512.2327829,0.000147,2]
[334714197,1723498243636,-2395.24,0.00014712,2]
[334714198,1723498243645,-2920.55633225,0.00014713,2]
[334714199,1723498243865,245.20138133,0.0001361,2]
[334714200,1723498243886,-37079.44366775,0.00014713,2]
[334714201,1723498243895,-500.0,0.00014792,2]
[334714202,1723498243904,-2183.24,0.00014792,2]
[334714203,1723498243914,-214.87882269,0.00014792,2]
[334714204,1723498243926,-8248.44,0.00014792,2]
[334714205,1723498243935,-918.59,0.00014792,2]
[334714206,1723498243946,-1326.94,0.00014792,2]
[334714207,1723498243956,-1496.48,0.00014792,2]
[334714208,1723498243965,-500.0,0.00014792,2]
[334714209,1723498243975,-808.47,0.00014792,2]
[334714210,1723498243984,-150.112233,0.000148,2]
[334714211,1723498243993,-150.112233,0.000148,2]
[334714212,1723498244002,-953.41,0.00014801,2]
[334714213,1723498244013,-500.0,0.00014801,2]
[334714214,1723498244022,-4853.39,0.00014801,2]
[334714215,1723498244031,-1502.12,0.00014801,2]
[334714216,1723498244040,-4805.67,0.00014801,2]
[334714217,1723498244049,-1320.11,0.00014801,2]
[334714218,1723498244058,-1670.32,0.00014801,2]
[334714219,1723498244067,-500.0,0.00014801,2]
[334714220,1723498244076,-500.0,0.00014801,2]
[334714221,1723498244085,-1616.55,0.00014801,2]
[334714222,1723498244095,-500.17,0.00014801,2]
[334714223,1723498244104,-1682.28,0.00014801,2]
[334714224,1723498244113,-1099.91,0.00014801,2]
[334714225,1723498244122,-500.0,0.00014801,2]
[334714226,1723498244132,-624.713945,0.00014801,2]
[334714227,1723498244142,-8839.39,0.00014801,2]
[334714228,1723498244153,-624.713945,0.00014801,2]
[334714229,1723498244162,-500.0,0.00014802,2]
[334714230,1723498244171,-706.27,0.00014802,2]
[334714231,1723498244180,-500.0,0.00014802,2]
[334714232,1723498244189,-631.53,0.00014802,2]
[334714233,1723498244199,-767.43,0.00014802,2]
[334714234,1723498244208,-500.0,0.00014802,2]
[334714235,1723498244217,-500.0,0.00014802,2]
[334714236,1723498244226,-500.0,0.00014802,2]
[334714237,1723498244235,-917.61,0.00014802,2]
[334714238,1723498244245,-500.0,0.00014802,2]
[334714239,1723498244255,-500.0,0.00014802,2]
[334714240,1723498244264,-500.0,0.00014802,2]
[334714241,1723498244273,-151.0,0.00014802,2]
[334714242,1723498244282,-111.79456811,0.00014802,2]
[334714243,1723498244637,-39.20543189,0.00014802,2]
[334714244,1723498244647,-151.0,0.00014802,2]
[334714245,1723498244657,-699.63,0.00014802,2]
[334714246,1723498244667,-500.0,0.00014802,2]
[334714247,1723498244677,-285.616054,0.00014802,2]
[334714248,1723498244686,-500.0,0.00014802,2]
[334714249,1723498244695,-500.0,0.00014802,2]
[334714250,1723498244705,-751.469496,0.00014802,2]
[334714251,1723498244715,-751.469496,0.00014802,2]
[334714252,1723498244724,-582.64,0.00014802,2]
[334714253,1723498244733,-500.0,0.00014802,2]
[334714254,1723498244743,-187.46442909,0.00014802,2]
[334714255,1723498244752,-988.64,0.00014802,2]
[334714256,1723498244764,-431.730112,0.00014802,2]
[334714257,1723498244773,-2575.87,0.00014802,2]
[334714258,1723498244783,-431.730112,0.00014802,2]
[334714259,1723498244791,-500.0,0.00014802,2]
[334714260,1723498244800,-416.913543,0.00014802,2]
[334714261,1723498244811,-1223.36,0.00014802,2]
[334714262,1723498244821,-416.913543,0.00014802,2]
[334714263,1723498244832,-500.0,0.00014802,2]
[334714264,1723498244844,-1510.27,0.00014802,2]
[334714265,1723498244854,-1055.72,0.00014802,2]
[334714266,1723498244864,-500.0,0.00014802,2]
[334714267,1723498244873,-1264.65,0.00014802,2]
[334714268,1723498244882,-263.914663,0.00014802,2]
[334714269,1723498244892,-1539.16,0.00014802,2]
[334714270,1723498244901,-263.914663,0.00014802,2]
[334714271,1723498244910,-151.0,0.00014802,2]
[334714272,1723498244920,-918.41,0.00014802,2]
[334714273,1723498244929,-500.0,0.00014802,2]
[334714274,1723498244938,-202.356079,0.00014802,2]
[334714275,1723498244948,-202.356079,0.00014802,2]
[334714276,1723498244957,-500.0,0.00014802,2]
[334714277,1723498244967,-370.934511,0.00014802,2]
[334714278,1723498244976,-979.367237,0.00014802,2]
[334714279,1723498244986,-151.0,0.00014802,2]
[334714280,1723498244996,-281.520702,0.00014802,2]
[334714281,1723498245005,-370.934511,0.00014802,2]
[334714282,1723498245015,-979.367237,0.00014802,2]
[334714283,1723498245025,-151.0,0.00014802,2]
[334714284,1723498245034,-661.7,0.00014802,2]
[334714285,1723498245043,-950.15,0.00014802,2]
[334714286,1723498245053,-500.0,0.00014802,2]
[334714287,1723498245064,-500.0,0.00014802,2]
[334714288,1723498245073,-500.0,0.00014802,2]
[334714289,1723498245082,-4514.91,0.00014802,2]
[334714290,1723498245092,-1529.06,0.00014802,2]
[334714291,1723498245101,-500.0,0.00014802,2]
[334714292,1723498245110,-500.0,0.00014802,2]
[334714293,1723498245120,-676.12,0.00014802,2]
[334714294,1723498245129,-197.830991,0.00014802,2]
[334714295,1723498245138,-500.0,0.00014802,2]
[334714296,1723498245147,-197.830991,0.00014802,2]
[334714297,1723498245156,-668.67,0.00014802,2]
[334714298,1723498245165,-500.0,0.00014802,2]
[334714299,1723498245175,-988.18,0.00014802,2]
[334714300,1723498245185,-2395.24,0.00014802,2]
[334714301,1723498245196,-2395.24,0.00014802,2]
[334714302,1723498245206,-2395.24,0.00014802,2]
[334714303,1723498245217,-2395.24,0.00014802,2]
[334714304,1723498245226,-2395.29319106,0.00014802,2]
[334714305,1723498245235,-500.0,0.00014802,2]
[334714306,1723498245245,-500.0,0.00014802,2]
[334714307,1723498245254,-782.82,0.00014802,2]
[334714308,1723498245265,-500.0,0.00014802,2]
[334714309,1723498245275,-1480.11,0.00014802,2]
[334714310,1723498245284,-895.65,0.00014802,2]
[334714311,1723498245296,-500.0,0.00014802,2]
[334714312,1723498245305,-500.0,0.00014802,2]
[334714313,1723498245315,-500.0,0.00014802,2]
[334714314,1723498245324,-186.931064,0.00014802,2]
[334714315,1723498245334,-842.55,0.00014802,2]
[334714316,1723498245344,-500.0,0.00014802,2]
[334714317,1723498245354,-186.931064,0.00014802,2]
[334714318,1723498245364,-721.43,0.00014802,2]
[334714319,1723498245373,-2443.76,0.00014802,2]
[334714320,1723498245386,-3554.56,0.00014802,2]
[334714321,1723498245396,-500.0,0.00014803,2]
[334714322,1723498245406,-500.0,0.00014803,2]
[334714323,1723498245416,-500.0,0.00014803,2]
[334714324,1723498245426,-500.0,0.00014803,2]
[334714325,1723498245435,-546.25,0.00014803,2]
[334714326,1723498245445,-730.4,0.00014803,2]
[334714327,1723498245455,-723.15,0.00014803,2]
[334714328,1723498245466,-500.0,0.00014803,2]
[334714329,1723498245476,-500.0,0.00014803,2]
[334714330,1723498245485,-637.82,0.00014803,2]
[334714331,1723498245495,-500.0,0.00014803,2]
[334714332,1723498245504,-525.3092981,0.00014803,2]
[334714333,1723498245513,-151.216415,0.00014803,2]
[334714334,1723498245524,-151.216415,0.00014803,2]
[334714335,1723498245533,-500.0,0.00014803,2]
[334714336,1723498245543,-503.25,0.00014803,2]
[334714337,1723498245553,-500.0,0.00014803,2]
[334714338,1723498245564,-500.0,0.00014803,2]
[334714339,1723498245573,-500.0,0.00014803,2]
[334714340,1723498245583,-500.0,0.00014803,2]
[334714341,1723498245592,-1097.68,0.00014803,2]
[334714342,1723498245601,-500.0,0.00014803,2]
[334714343,1723498245611,-500.0,0.00014803,2]
[334714344,1723498245621,-173.935755,0.00014803,2]
[334714345,1723498245630,-500.0,0.00014803,2]
[334714346,1723498245641,-173.935755,0.00014803,2]
[334714347,1723498245652,-536.74,0.00014803,2]
[334714348,1723498245662,-500.0,0.00014803,2]
[334714349,1723498245671,-555.71,0.00014803,2]
[334714350,1723498245680,-500.0,0.00014803,2]
[334714351,1723498245690,-500.0,0.00014803,2]
[334714352,1723498245699,-500.0,0.00014803,2]
[334714353,1723498245709,-741.11,0.00014803,2]
[334714354,1723498245718,-500.0,0.00014803,2]
[334714355,1723498245728,-1466.67,0.00014803,2]
[334714356,1723498245738,-1136.66,0.00014803,2]
[334714358,1723498245748,-1086.4,0.00014803,2]
[334714360,1723498245758,-1220.44,0.00014803,2]
[334714361,1723498245770,-500.0,0.00014803,2]
[334714362,1723498245779,-6490.07,0.00014803,2]